[Event "Schack-SM 2023: Junior-SM"]
[Site "Helsingborg Arena, Mellersta Stenbocksgatan 14, Helsingborg, Sweden"]
[Date "2023.07.04"]
[Round "4.3"]
[White "Carlsson, Ludvig"]
[Black "Seo, Jung Hyun"]
[Result "1-0"]
[TimeControl "90 minutes for 40 moves + 30 minutes for the rest of the game + 30 seconds per move from move one."]
[WhiteTitle "IM"]
[WhiteElo "2373"]
[BlackElo "2124"]

1. d4 {[%clk 01:29:50]} {[%emt 00:01:07]} d5 {[%clk 01:30:32]} {[%emt
00:00:30]} 2. c4 {[%clk 01:29:39]} {[%emt 00:00:40]} e6 {[%clk 01:30:58]}
{[%emt 00:00:05]} 3. Nc3 {[%clk 01:29:12]} {[%emt 00:00:57]} Nf6 {[%clk
01:31:19]} {[%emt 00:00:10]} 4. cxd5 {[%clk 01:29:01]} {[%emt 00:00:40]} exd5
{[%clk 01:31:45]} {[%emt 00:00:04]} 5. Bg5 {[%clk 01:28:52]} {[%emt 00:00:39]}
c6 {[%clk 01:32:01]} {[%emt 00:00:14]} 6. e3 {[%clk 01:28:51]} {[%emt
00:00:30]} Be7 {[%clk 01:32:03]} {[%emt 00:00:29]} 7. Bd3 {[%clk 01:28:47]}
{[%emt 00:00:34]} Nbd7 {[%clk 01:32:25]} {[%emt 00:00:08]} 8. h3 {[%clk
01:28:43]} {[%emt 00:00:33]} h6 {[%clk 01:29:41]} {[%emt 00:03:15]} 9. Bf4
{[%clk 01:28:19]} {[%emt 00:00:52]} Nb6 {[%clk 01:29:52]} {[%emt 00:00:21]} 10.
Nf3 {[%clk 01:22:16]} {[%emt 00:06:32]} Be6 {[%clk 01:26:01]} {[%emt 00:04:22]}
11. Qc2 {[%clk 01:16:59]} {[%emt 00:05:46]} Bd6 {[%clk 01:23:22]} {[%emt
00:03:09]} 12. O-O {[%clk 01:05:01]} {[%emt 00:12:26]} O-O {[%clk 01:20:56]}
{[%emt 00:02:58]} 13. Ne5 {[%clk 00:54:58]} {[%emt 00:10:32]} Qc7 {[%clk
01:04:30]} {[%emt 00:16:56]} 14. b3 {[%clk 00:50:42]} {[%emt 00:04:46]} Rac8
{[%clk 00:46:43]} {[%emt 00:18:18]} 15. Bh2 {[%clk 00:48:27]} {[%emt 00:02:44]}
a6 {[%clk 00:45:59]} {[%emt 00:01:14]} 16. b4 {[%clk 00:45:49]} {[%emt
00:03:08]} Nc4 {[%clk 00:43:52]} {[%emt 00:02:37]} 17. Bxc4 {[%clk 00:43:13]}
{[%emt 00:03:06]} dxc4 {[%clk 00:43:49]} {[%emt 00:00:34]} 18. f4 {[%clk
00:43:29]} {[%emt 00:00:13]} Qe7 {[%clk 00:36:43]} {[%emt 00:07:36]} 19. f5
{[%clk 00:41:40]} {[%emt 00:02:18]} Bd7 {[%clk 00:37:03]} {[%emt 00:00:11]} 20.
a3 {[%clk 00:36:35]} {[%emt 00:05:35]} b5 {[%clk 00:30:59]} {[%emt 00:06:35]}
21. e4 {[%clk 00:33:23]} {[%emt 00:03:42]} a5 {[%clk 00:24:34]} {[%emt
00:06:55]} 22. Kh1 {[%clk 00:28:27]} {[%emt 00:05:25]} axb4 {[%clk 00:23:34]}
{[%emt 00:01:31]} 23. axb4 {[%clk 00:28:50]} {[%emt 00:00:07]} Bxb4 {[%clk
00:21:51]} {[%emt 00:02:13]} 24. Ra7 {[%clk 00:28:47]} {[%emt 00:00:33]} Bxc3
{[%clk 00:20:37]} {[%emt 00:01:44]} 25. Qxc3 {[%clk 00:28:40]} {[%emt
00:00:36]} Ra8 {[%clk 00:19:25]} {[%emt 00:01:42]} 26. Qa1 {[%clk 00:25:44]}
{[%emt 00:03:26]} Rxa7 {[%clk 00:19:39]} {[%emt 00:00:16]} 27. Qxa7 {[%clk
00:26:09]} {[%emt 00:00:04]} c3 {[%clk 00:18:56]} {[%emt 00:01:13]} 28. Re1
{[%clk 00:24:30]} {[%emt 00:02:09]} Qb4 {[%clk 00:11:30]} {[%emt 00:07:57]} 29.
Nxd7 {[%clk 00:21:04]} {[%emt 00:03:56]} Nxd7 {[%clk 00:11:59]} {[%emt
00:00:02]} 30. Qxd7 {[%clk 00:21:23]} {[%emt 00:00:10]} c2 {[%clk 00:12:28]}
{[%emt 00:00:01]} 31. Rg1 {[%clk 00:21:45]} {[%emt 00:00:07]} Qd2 {[%clk
00:09:12]} {[%emt 00:03:47]} 32. Qxc6 {[%emt 00:00:12]} b4 {[%clk 00:09:41]} 33.
d5 {[%clk 00:16:29]} {[%emt 00:06:04]} b3 {[%clk 00:10:01]} {[%emt 00:00:10]}
34. Be5 {[%clk 00:16:55]} {[%emt 00:00:04]} Rb8 {[%clk 00:08:54]} {[%emt
00:01:37]} 35. Bb2 {[%clk 00:16:30]} {[%emt 00:00:55]} Qd1 {[%clk 00:08:27]}
{[%emt 00:00:58]} 36. d6 {[%clk 00:15:40]} {[%emt 00:01:19]} Qb1 {[%clk
00:08:46]} {[%emt 00:00:12]} 37. Qc3 {[%clk 00:16:04]} {[%emt 00:00:05]} f6
{[%clk 00:08:55]} {[%emt 00:00:21]} 38. e5 {[%clk 00:16:12]} {[%emt 00:00:21]}
Kh7 {[%clk 00:08:35]} {[%emt 00:00:51]} 39. exf6 {[%clk 00:16:16]} {[%emt
00:00:25]} c1=Q {[%clk 00:04:18]} {[%emt 00:04:47]} 40. Rxc1 {[%clk 00:16:21]}
{[%emt 00:00:25]} Qxf5 {[%clk 00:04:46]} {[%emt 00:00:02]} 41. fxg7 {[%clk
00:16:15]} {[%emt 00:00:35]} Qd5 {[%clk 00:04:56]} {[%emt 00:00:21]} 42. Qe5
{[%clk 00:15:47]} {[%emt 00:00:57]} Qd3 {[%clk 00:02:42]} {[%emt 00:02:45]} 43.
g8=B+ {[%clk 00:15:23]} {[%emt 00:00:53]} Rxg8 {[%clk 00:03:02]} {[%emt
00:00:11]} 44. Qe7+ {[%clk 00:15:47]} {[%emt 00:00:05]} Kg6 {[%clk 00:03:28]}
{[%emt 00:00:05]} 45. Qf6+ {[%clk 00:15:23]} {[%emt 00:00:53]} Kh5 {[%clk
00:03:47]} {[%emt 00:00:11]} 46. Rc5+ {[%clk 00:14:35]} {[%emt 00:01:18]} Rg5
{[%clk 00:04:13]} {[%emt 00:00:04]} 47. Qf7+ {[%clk 00:14:57]} {[%emt
00:00:07]} Kh4 {[%clk 00:04:36]} {[%emt 00:00:08]} 48. Qf4+ {[%clk 00:14:58]}
{[%emt 00:00:28]} Kh5 {[%clk 00:04:55]} {[%emt 00:00:12]} 49. Qg4+ {[%clk
00:15:20]} {[%emt 00:00:07]} Kg6 {[%clk 00:05:20]} {[%emt 00:00:05]} 50. Qe6+
{[%clk 00:15:11]} {[%emt 00:00:39]} Kh5 {[%clk 00:05:44]} {[%emt 00:00:06]} 51.
Qe8+ {[%clk 00:15:34]} {[%emt 00:00:07]} Kh4 {[%clk 00:06:09]} {[%emt
00:00:05]} 52. Qe1+ {[%clk 00:15:59]} {[%emt 00:00:05]} Kh5 {[%clk 00:06:15]}
{[%emt 00:00:25]} 53. g4+ {[%clk 00:16:21]} {[%emt 00:00:07]} Kg6 {[%clk
00:06:38]} {[%emt 00:00:07]} 54. Qe8+ {[%clk 00:16:38]} {[%emt 00:00:13]} Kh7
{[%clk 00:07:01]} {[%emt 00:00:06]} 55. Qh8+ {[%clk 00:17:04]} {[%emt
00:00:04]} Kg6 {[%clk 00:07:27]} {[%emt 00:00:05]} 56. Qg8# {[%emt 00:00:04]}
1-0

[Event "Schack-SM 2023: Veteran-SM 65+"]
[Site "Helsingborg Arena, Mellersta Stenbocksgatan 14, Helsingborg, Sweden"]
[Date "2023.07.04"]
[Round "4.2"]
[White "Ivarsson, Torbjorn"]
[Black "Blomstrom, Lars"]
[Result "1-0"]
[TimeControl "90 minutes for 40 moves + 30 minutes for the rest of games + 30 seconds per move from move one."]
[WhiteElo "2073"]
[BlackElo "2021"]

1. d4 {[%clk 01:30:42]} {[%emt 00:00:17]} Nf6 {[%clk 01:30:57]} {[%emt
00:00:04]} 2. Nc3 {[%clk 01:30:55]} {[%emt 00:00:17]} g6 {[%clk 01:30:52]}
{[%emt 00:00:34]} 3. e4 {[%clk 01:30:03]} {[%emt 00:01:22]} d6 {[%clk
01:31:18]} {[%emt 00:00:05]} 4. Nf3 {[%clk 01:29:34]} {[%emt 00:00:58]} Bg7
{[%clk 01:31:37]} {[%emt 00:00:11]} 5. Be2 {[%clk 01:29:24]} {[%emt 00:00:39]}
c6 {[%clk 01:29:24]} {[%emt 00:02:45]} 6. a4 {[%clk 01:29:03]} {[%emt
00:00:52]} a5 {[%clk 01:26:40]} {[%emt 00:03:13]} 7. O-O {[%clk 01:26:59]}
{[%emt 00:02:33]} O-O {[%clk 01:26:48]} {[%emt 00:00:21]} 8. Bf4 {[%clk
01:25:46]} {[%emt 00:01:44]} Na6 {[%clk 01:08:48]} {[%emt 00:18:30]} 9. Qd2
{[%clk 01:24:02]} {[%emt 00:02:14]} Nb4 {[%clk 01:07:12]} {[%emt 00:02:07]} 10.
Rac1 {[%clk 01:22:05]} {[%emt 00:02:26]} d5 {[%clk 00:53:37]} {[%emt 00:14:05]}
11. e5 {[%clk 01:18:06]} {[%emt 00:04:30]} Ne8 {[%clk 00:53:32]} {[%emt
00:00:35]} 12. Bh6 {[%clk 01:16:44]} {[%emt 00:01:52]} f6 {[%clk 00:50:14]}
{[%emt 00:03:47]} 13. h3 {[%clk 01:13:19]} {[%emt 00:03:55]} g5 {[%clk
00:37:56]} {[%emt 00:12:47]} 14. Bxg7 {[%clk 01:12:00]} {[%emt 00:01:50]} Nxg7
{[%clk 00:38:22]} {[%emt 00:00:04]} 15. Nd1 {[%clk 01:09:29]} {[%emt 00:03:01]}
h6 {[%clk 00:36:36]} {[%emt 00:02:15]} 16. c3 {[%clk 00:59:47]} {[%emt
00:10:13]} Na6 {[%clk 00:37:03]} {[%emt 00:00:04]} 17. exf6 {[%clk 00:57:56]}
{[%emt 00:02:20]} exf6 {[%clk 00:37:18]} {[%emt 00:00:15]} 18. Ne3 {[%clk
00:58:00]} {[%emt 00:00:26]} Nf5 {[%clk 00:30:29]} {[%emt 00:07:19]} 19. Qc2
{[%clk 00:56:02]} {[%emt 00:02:28]} Qd7 {[%clk 00:29:59]} {[%emt 00:01:00]} 20.
Nxf5 {[%clk 00:55:29]} {[%emt 00:01:03]} Qxf5 {[%clk 00:30:27]} {[%emt
00:00:02]} 21. Bd3 {[%clk 00:55:43]} {[%emt 00:00:16]} Qd7 {[%clk 00:25:44]}
{[%emt 00:05:13]} 22. Rce1 {[%clk 00:54:39]} {[%emt 00:01:34]} Qf7 {[%clk
00:17:36]} {[%emt 00:08:37]} 23. Re3 {[%clk 00:53:56]} {[%emt 00:01:13]} b6
{[%clk 00:09:06]} {[%emt 00:09:01]} 24. Rfe1 {[%clk 00:50:30]} {[%emt
00:03:56]} f5 {[%clk 00:09:19]} {[%emt 00:00:17]} 25. Re7 {[%clk 00:48:54]}
{[%emt 00:02:06]} Qf6 {[%clk 00:09:48]} {[%emt 00:00:02]} 26. R1e5 {[%clk
00:47:57]} {[%emt 00:01:27]} Nb8 {[%clk 00:06:10]} {[%emt 00:04:07]} 27. Qd2
{[%clk 00:41:30]} {[%emt 00:06:57]} Bd7 {[%clk 00:05:59]} {[%emt 00:00:41]} 28.
g4 {[%clk 00:36:18]} {[%emt 00:05:42]} fxg4 {[%clk 00:04:54]} {[%emt 00:01:35]}
29. Nxg5 {[%clk 00:36:15]} {[%emt 00:00:33]} Qf4 {[%clk 00:04:13]} {[%emt
00:01:11]} 30. Qxf4 {[%clk 00:31:54]} {[%emt 00:04:51]} Rxf4 {[%clk 00:04:42]}
{[%emt 00:00:02]} 31. Ne6 {[%clk 00:29:56]} {[%emt 00:02:28]} Rf3 {[%clk
00:02:59]} {[%emt 00:02:13]} 32. Be2 {[%clk 00:26:38]} {[%emt 00:03:47]} Rxh3
{[%clk 00:02:12]} {[%emt 00:01:17]} 33. Bxg4 {[%clk 00:24:59]} {[%emt
00:02:10]} Rd3 {[%clk 00:02:22]} {[%emt 00:00:19]} 34. Nf4 {[%clk 00:24:37]}
{[%emt 00:00:52]} Bxg4 {[%clk 00:01:52]} {[%emt 00:01:00]} 35. Re8+ {[%clk
00:24:22]} {[%emt 00:00:46]} Kg7 {[%clk 00:01:30]} {[%emt 00:00:52]} 36. Nxd3
{[%clk 00:24:38]} {[%emt 00:00:13]} Kf6 {[%clk 00:01:43]} {[%emt 00:00:18]} 37.
Rf8+ {[%clk 00:23:59]} {[%emt 00:01:09]} 1-0

[Event "Schack-SM 2023: Veteran-SM 50+"]
[Site "Helsingborg Arena, Mellersta Stenbocksgatan 14, Helsingborg, Sweden"]
[Date "2023.07.04"]
[Round "4.2"]
[White "Eriksson, Bengt"]
[Black "Karlsson, Ulf"]
[Result "1/2-1/2"]
[TimeControl "90 minutes for 40 moves + 30 minutes for the rest of games + 30 seconds per move from move one."]
[WhiteElo "2016"]
[BlackElo "1968"]

1. d4 {[%clk 01:30:49]} {[%emt 00:00:09]} d5 {[%clk 01:30:48]} {[%emt
00:00:13]} 2. Bg5 {[%clk 01:31:07]} {[%emt 00:00:11]} h6 {[%clk 01:30:54]}
{[%emt 00:00:24]} 3. Bh4 {[%clk 01:31:29]} {[%emt 00:00:08]} c6 {[%clk
01:31:15]} {[%emt 00:00:10]} 4. Nf3 {[%clk 01:20:50]} {[%emt 00:11:09]} Qb6
{[%clk 01:29:13]} {[%emt 00:02:32]} 5. b3 {[%clk 01:20:54]} {[%emt 00:00:26]}
Bf5 {[%clk 01:27:50]} {[%emt 00:01:52]} 6. e3 {[%clk 01:21:09]} {[%emt
00:00:15]} Nd7 {[%clk 01:27:11]} {[%emt 00:01:10]} 7. Bd3 {[%clk 01:21:31]}
{[%emt 00:00:07]} Bxd3 {[%clk 01:27:30]} {[%emt 00:00:11]} 8. Qxd3 {[%clk
01:21:59]} {[%emt 00:00:03]} Ngf6 {[%clk 01:25:41]} {[%emt 00:02:19]} 9. O-O
{[%clk 01:22:05]} {[%emt 00:00:23]} e6 {[%clk 01:25:33]} {[%emt 00:00:38]} 10.
c4 {[%clk 01:22:21]} {[%emt 00:00:14]} Be7 {[%clk 01:23:16]} {[%emt 00:02:47]}
11. Nc3 {[%clk 01:22:17]} {[%emt 00:00:35]} Qd8 {[%clk 01:22:46]} {[%emt
00:01:00]} 12. Rfe1 {[%clk 01:15:59]} {[%emt 00:06:46]} O-O {[%clk 01:19:35]}
{[%emt 00:03:43]} 13. h3 {[%clk 01:08:48]} {[%emt 00:07:41]} Re8 {[%clk
01:15:26]} {[%emt 00:04:39]} 14. Bg3 {[%clk 01:06:03]} {[%emt 00:03:15]} Bb4
{[%clk 01:07:48]} {[%emt 00:08:08]} 15. cxd5 {[%clk 00:54:24]} {[%emt
00:12:08]} exd5 {[%clk 01:06:06]} {[%emt 00:02:12]} 16. Nd2 {[%clk 00:54:01]}
{[%emt 00:00:54]} Qa5 {[%clk 00:52:41]} {[%emt 00:13:55]} 17. Rec1 {[%clk
00:51:53]} {[%emt 00:02:37]} Bxc3 {[%clk 00:48:51]} {[%emt 00:04:21]} 18. Qxc3
{[%clk 00:45:31]} {[%emt 00:06:52]} Qxc3 {[%emt 00:00:43]} 19. Rxc3 {[%clk
00:45:49]} {[%emt 00:00:08]} Ne4 {[%clk 00:47:52]} {[%emt 00:01:20]} 20. Nxe4
{[%clk 00:46:10]} {[%emt 00:00:09]} Rxe4 {[%clk 00:47:37]} {[%emt 00:00:45]} 21.
b4 {[%clk 00:41:31]} {[%emt 00:05:10]} a6 {[%clk 00:46:15]} {[%emt 00:01:50]}
22. a4 {[%clk 00:34:10]} {[%emt 00:07:51]} Re6 {[%clk 00:32:37]} {[%emt
00:14:09]} 23. a5 {[%clk 00:20:23]} {[%emt 00:14:16]} 1/2-1/2

[Event "Schack-SM 2023: Sverigemastarklassen"]
[Site "Helsingborg Arena, Mellersta Stenbocksgatan 14, Helsingborg, Sweden"]
[Date "2023.07.04"]
[Round "4.2"]
[White "Ernst, Thomas"]
[Black "Sivuk, Vitaly"]
[Result "1/2-1/2"]
[TimeControl "90 minutes for 40 moves + 30 minutes for the rest of the game + 30 seconds per move from move one."]
[WhiteTitle "GM"]
[BlackTitle "GM"]
[WhiteElo "2288"]
[BlackElo "2432"]

1. e4 {[%clk 01:30:52]} {[%emt 00:00:06]} c5 {[%clk 01:28:18]} {[%emt
00:02:42]} 2. Nf3 {[%clk 01:31:09]} {[%emt 00:00:14]} d6 {[%clk 01:28:38]}
{[%emt 00:00:10]} 3. d4 {[%clk 01:31:28]} {[%emt 00:00:11]} cxd4 {[%clk
01:29:03]} {[%emt 00:00:06]} 4. Nxd4 {[%clk 01:31:53]} {[%emt 00:00:05]} Nf6
{[%clk 01:29:23]} {[%emt 00:00:09]} 5. Nc3 {[%clk 01:32:16]} {[%emt 00:00:07]}
a6 {[%clk 01:29:49]} {[%emt 00:00:04]} 6. Bg5 {[%clk 01:32:32]} {[%emt
00:00:15]} Nbd7 {[%clk 01:30:07]} {[%emt 00:00:12]} 7. f4 {[%clk 01:32:43]}
{[%emt 00:00:18]} Qc7 {[%clk 01:29:52]} {[%emt 00:00:45]} 8. Qf3 {[%clk
01:31:55]} {[%emt 00:01:18]} h6 {[%clk 01:30:00]} {[%emt 00:00:22]} 9. Bxf6
{[%clk 01:30:55]} {[%emt 00:01:31]} Nxf6 {[%clk 01:30:23]} {[%emt 00:00:07]} 10.
f5 {[%clk 01:31:13]} {[%emt 00:00:11]} Qc5 {[%clk 01:30:41]} {[%emt 00:00:12]}
11. Nb3 {[%clk 01:27:02]} {[%emt 00:04:41]} Qe5 {[%clk 01:28:32]} {[%emt
00:02:38]} 12. Nd2 {[%clk 01:26:22]} {[%emt 00:01:10]} Bd7 {[%clk 01:18:34]}
{[%emt 00:10:28]} 13. Nc4 {[%clk 01:23:15]} {[%emt 00:03:37]} Qc5 {[%clk
01:18:56]} {[%emt 00:00:08]} 14. O-O-O {[%clk 01:22:34]} {[%emt 00:01:11]} Rc8
{[%clk 01:15:01]} {[%emt 00:04:25]} 15. Bd3 {[%clk 01:19:52]} {[%emt 00:03:12]}
Bc6 {[%clk 01:13:20]} {[%emt 00:02:11]} 16. Rhe1 {[%clk 01:15:08]} {[%emt
00:05:14]} Nd7 {[%clk 01:01:50]} {[%emt 00:11:59]} 17. Kb1 {[%clk 01:09:10]}
{[%emt 00:06:28]} b5 {[%clk 00:56:29]} {[%emt 00:05:51]} 18. Ne3 {[%clk
01:09:23]} {[%emt 00:00:18]} Ne5 {[%clk 00:56:22]} {[%emt 00:00:37]} 19. Qh3
{[%clk 01:08:42]} {[%emt 00:01:10]} Bd7 {[%clk 00:54:22]} {[%emt 00:02:31]} 20.
Ncd5 {[%clk 00:59:16]} {[%emt 00:09:56]} g6 {[%clk 00:43:56]} {[%emt 00:10:56]}
21. Qh4 {[%clk 00:56:59]} {[%emt 00:02:47]} Rg8 {[%clk 00:38:53]} {[%emt
00:05:33]} 22. Ng4 {[%clk 00:37:12]} {[%emt 00:20:17]} g5 {[%clk 00:27:36]}
{[%emt 00:11:48]} 23. Qh3 {[%emt 00:03:11]} Nxg4 {[%clk 00:27:57]} {[%emt
00:00:06]} 24. Qxg4 {[%clk 00:34:58]} {[%emt 00:00:06]} Bg7 {[%clk 00:28:22]}
{[%emt 00:00:05]} 25. Qf3 {[%clk 00:32:40]} {[%emt 00:02:48]} Be5 {[%clk
00:25:10]} {[%emt 00:03:43]} 26. h3 {[%clk 00:32:07]} {[%emt 00:01:03]} Bc6
{[%clk 00:21:50]} {[%emt 00:03:49]} 27. c3 {[%clk 00:30:38]} {[%emt 00:01:58]}
a5 {[%clk 00:16:40]} {[%emt 00:05:41]} 28. f6 {[%clk 00:21:43]} {[%emt
00:09:25]} Rg6 {[%clk 00:12:09]} {[%emt 00:05:00]} 29. fxe7 {[%clk 00:20:02]}
{[%emt 00:02:12]} Bxd5 {[%clk 00:07:39]} {[%emt 00:05:01]} 30. exd5 {[%clk
00:20:25]} {[%emt 00:00:07]} Rf6 {[%clk 00:08:05]} {[%emt 00:00:03]} 31. Bf5
{[%clk 00:19:48]} {[%emt 00:01:07]} Rc7 {[%clk 00:08:23]} {[%emt 00:00:12]} 32.
Re4 {[%clk 00:14:28]} {[%emt 00:05:48]} Rxe7 {[%clk 00:08:29]} {[%emt
00:00:25]} 33. g4 {[%clk 00:14:25]} {[%emt 00:00:33]} Kf8 {[%clk 00:07:53]}
{[%emt 00:01:07]} 34. Qe3 {[%clk 00:13:23]} {[%emt 00:01:31]} Qxe3 {[%clk
00:07:48]} {[%emt 00:00:36]} 35. Rxe3 {[%clk 00:13:47]} {[%emt 00:00:06]} h5
{[%clk 00:08:10]} {[%emt 00:00:07]} 36. Re4 {[%clk 00:09:50]} {[%emt 00:04:27]}
hxg4 {[%clk 00:07:40]} {[%emt 00:01:01]} 37. hxg4 {[%clk 00:10:15]} {[%emt
00:00:05]} Rh6 {[%clk 00:08:06]} {[%emt 00:00:04]} 38. Rd2 {[%clk 00:10:01]}
{[%emt 00:00:43]} f6 {[%clk 00:04:01]} {[%emt 00:04:36]} 39. a4 {[%clk
00:08:57]} {[%emt 00:01:34]} Rh1+ {[%clk 00:03:55]} {[%emt 00:00:36]} 40. Ka2
{[%clk 00:09:13]} {[%emt 00:00:15]} Rb7 {[%clk 00:04:05]} {[%emt 00:00:20]} 41.
axb5 {[%clk 00:09:23]} {[%emt 00:00:20]} Rxb5 {[%clk 00:04:31]} {[%emt
00:00:04]} 42. Rc4 {[%clk 00:09:23]} {[%emt 00:00:30]} Ke7 {[%clk 00:01:04]}
{[%emt 00:03:57]} 43. Rc7+ {[%clk 00:08:26]} {[%emt 00:01:25]} Kd8 {[%emt
00:00:07]} 1/2-1/2

[Event "Schack-SM 2023: Mastarklassen-elit"]
[Site "Helsingborg Arena, Mellersta Stenbocksgatan 14, Helsingborg, Sweden"]
[Date "2023.07.04"]
[Round "4.1"]
[White "Torngren, Gustav"]
[Black "Soderstrom, Adrian"]
[Result "1-0"]
[TimeControl "90 minutes for 40 moves + 30 minutes for the rest of games + 30 seconds per move from move one."]
[WhiteTitle "FM"]
[BlackTitle "FM"]
[WhiteElo "2297"]
[BlackElo "2311"]

1. d4 {[%clk 01:30:21]} {[%emt 00:00:38]} d5 {[%clk 01:30:27]} {[%emt
00:00:23]} 2. c4 {[%clk 01:30:42]} {[%emt 00:00:18]} c6 {[%clk 01:30:39]}
{[%emt 00:00:19]} 3. Nf3 {[%clk 01:31:01]} {[%emt 00:00:10]} Nf6 {[%clk
01:31:02]} {[%emt 00:00:07]} 4. Nc3 {[%clk 01:31:20]} {[%emt 00:00:11]} dxc4
{[%clk 01:30:21]} {[%emt 00:01:12]} 5. a4 {[%clk 01:31:34]} {[%emt 00:00:16]}
Bg4 {[%clk 01:30:24]} {[%emt 00:00:26]} 6. Ne5 {[%clk 01:21:06]} {[%emt
00:10:58]} Bh5 {[%clk 01:30:46]} {[%emt 00:00:09]} 7. h4 {[%clk 01:21:16]}
{[%emt 00:00:21]} Nbd7 {[%clk 01:15:02]} {[%emt 00:16:13]} 8. f3 {[%clk
01:20:13]} {[%emt 00:01:32]} Nxe5 {[%clk 01:08:01]} {[%emt 00:07:31]} 9. dxe5
{[%clk 01:20:09]} {[%emt 00:00:35]} Qc7 {[%clk 01:08:18]} {[%emt 00:00:13]} 10.
Qd4 {[%clk 01:17:08]} {[%emt 00:03:30]} Rd8 {[%clk 01:05:34]} {[%emt 00:03:14]}
11. Qxc4 {[%clk 01:03:38]} {[%emt 00:14:00]} Qxe5 {[%clk 01:03:22]} {[%emt
00:02:42]} 12. Bf4 {[%clk 01:03:14]} {[%emt 00:00:54]} Qd4 {[%clk 01:00:48]}
{[%emt 00:03:05]} 13. Qxd4 {[%clk 01:02:17]} {[%emt 00:01:27]} Rxd4 {[%clk
01:00:15]} {[%emt 00:01:03]} 14. e4 {[%clk 00:41:39]} {[%emt 00:21:07]} h6
{[%clk 00:56:12]} {[%emt 00:04:33]} 15. Be3 {[%clk 00:34:12]} {[%emt 00:07:57]}
Rd8 {[%clk 00:51:10]} {[%emt 00:05:32]} 16. g4 {[%clk 00:34:11]} {[%emt
00:00:31]} Bg6 {[%clk 00:51:23]} {[%emt 00:00:17]} 17. h5 {[%clk 00:34:30]}
{[%emt 00:00:11]} Bh7 {[%clk 00:51:46]} {[%emt 00:00:07]} 18. Bc4 {[%clk
00:33:32]} {[%emt 00:01:29]} Nd7 {[%clk 00:42:57]} {[%emt 00:09:18]} 19. O-O-O
{[%clk 00:29:46]} {[%emt 00:04:17]} e6 {[%clk 00:20:53]} {[%emt 00:22:33]} 20.
Bxa7 {[%clk 00:24:04]} {[%emt 00:06:12]} Ra8 {[%clk 00:16:59]} {[%emt
00:04:25]} 21. Nb5 {[%clk 00:16:59]} {[%emt 00:07:34]} Rxa7 {[%clk 00:06:45]}
{[%emt 00:10:44]} 22. Nxa7 {[%clk 00:17:09]} {[%emt 00:00:21]} Kd8 {[%clk
00:06:39]} {[%emt 00:00:35]} 23. Nb5 {[%clk 00:15:46]} {[%emt 00:01:53]} Bc5
{[%clk 00:06:35]} {[%emt 00:00:34]} 24. Nd6 {[%clk 00:15:49]} {[%emt 00:00:27]}
Ke7 {[%clk 00:05:52]} {[%emt 00:01:13]} 25. Nxb7 {[%clk 00:14:57]} {[%emt
00:01:23]} Be3+ {[%clk 00:05:54]} {[%emt 00:00:27]} 26. Kb1 {[%clk 00:15:25]}
{[%emt 00:00:03]} Ne5 {[%clk 00:05:48]} {[%emt 00:00:35]} 27. Be2 {[%clk
00:12:17]} {[%emt 00:03:38]} f5 {[%clk 00:05:18]} {[%emt 00:01:01]} 28. gxf5
{[%clk 00:12:21]} {[%emt 00:00:25]} exf5 {[%clk 00:05:46]} {[%emt 00:00:02]} 29.
Nd6 {[%clk 00:12:04]} {[%emt 00:00:47]} fxe4 {[%clk 00:05:53]} {[%emt
00:00:24]} 30. fxe4 {[%clk 00:11:58]} {[%emt 00:00:36]} Ra8 {[%clk 00:04:32]}
{[%emt 00:01:51]} 31. b3 {[%clk 00:11:47]} {[%emt 00:00:41]} Bg5 {[%clk
00:03:52]} {[%emt 00:01:09]} 32. Nf5+ {[%clk 00:09:01]} {[%emt 00:03:16]} Kf8
{[%clk 00:04:21]} {[%emt 00:00:02]} 33. Kc2 {[%clk 00:06:05]} {[%emt 00:03:25]}
Bf6 {[%clk 00:03:46]} {[%emt 00:01:05]} 34. Ra1 {[%clk 00:04:41]} {[%emt
00:01:55]} c5 {[%clk 00:03:44]} {[%emt 00:00:32]} 35. Bb5 {[%clk 00:04:33]}
{[%emt 00:00:37]} Nf3 {[%clk 00:03:13]} {[%emt 00:01:02]} 36. Raf1 {[%clk
00:03:58]} {[%emt 00:01:04]} Nd4+ {[%clk 00:03:09]} {[%emt 00:00:35]} 37. Kd3
{[%clk 00:00:48]} {[%emt 00:03:40]} Rd8 {[%clk 00:03:37]} {[%emt 00:00:01]} 38.
Nxd4 {[%clk 00:00:37]} {[%emt 00:00:41]} Rxd4+ {[%clk 00:04:05]} {[%emt
00:00:03]} 39. Ke3 {[%clk 00:00:46]} {[%emt 00:00:21]} Bxe4 {[%clk 00:02:48]}
{[%emt 00:01:47]} 40. Rh4 {[%clk 00:00:34]} {[%emt 00:00:42]} Bg2 {[%clk
00:00:44]} {[%emt 00:02:34]} 41. Rxf6+ {[%clk 00:23:52]} {[%emt 00:07:12]} gxf6
{[%clk 00:31:10]} {[%emt 00:00:03]} 42. Rxd4 {[%clk 00:24:18]} {[%emt
00:00:04]} cxd4+ {[%clk 00:31:27]} {[%emt 00:00:12]} 43. Kxd4 {[%clk 00:24:45]}
{[%emt 00:00:04]} Ke7 {[%clk 00:30:42]} {[%emt 00:01:16]} 44. Bd3 {[%clk
00:21:09]} {[%emt 00:04:05]} Kd6 {[%clk 00:28:08]} {[%emt 00:03:05]} 45. a5
{[%clk 00:19:35]} {[%emt 00:02:04]} Kc7 {[%clk 00:27:35]} {[%emt 00:01:03]} 46.
b4 {[%clk 00:19:29]} {[%emt 00:00:35]} Bf3 {[%clk 00:27:13]} {[%emt 00:00:52]}
47. Be4 {[%clk 00:18:08]} {[%emt 00:01:51]} Bxh5 {[%clk 00:27:13]} {[%emt
00:00:31]} 48. Kc5 {[%clk 00:17:44]} {[%emt 00:00:53]} f5 {[%clk 00:23:35]}
{[%emt 00:04:08]} 49. Bc6 {[%clk 00:16:26]} {[%emt 00:01:48]} f4 {[%clk
00:17:41]} {[%emt 00:06:24]} 50. a6 {[%clk 00:14:56]} {[%emt 00:02:00]} f3
{[%clk 00:17:53]} {[%emt 00:00:18]} 51. a7 {[%clk 00:15:15]} {[%emt 00:00:12]}
f2 {[%clk 00:18:07]} {[%emt 00:00:16]} 52. a8=Q {[%clk 00:15:33]} {[%emt
00:00:11]} f1=Q {[%clk 00:18:31]} {[%emt 00:00:07]} 53. Qb7+ {[%clk 00:15:56]}
{[%emt 00:00:07]} Kd8 {[%clk 00:18:57]} {[%emt 00:00:03]} 54. Qd7# {[%clk
00:16:20]} {[%emt 00:00:05]} 1-0